[Event "Titled Tuesday Blitz May 16 Early 2023"]
[White "Smith, Shreyas"]
[Black "Perera Alfonso, Rene Humberto"]
[WhiteFideId "7400713"]
[BlackFideId "3514722"]
[WhiteElo "2151"]
[BlackElo "2313"]
[Result "1/2-1/2"]
[Round "04"]
[TimeControl "180+2"]
[Date "2023.05.16"]
[WhiteClock "0:00:03"]
[BlackClock "0:00:25"]

1. e4 {[%clk 0:03:00]}  c5 {[%clk 0:02:58]} 2. Nf3 {[%clk 0:03:00]}  d6 {[%clk 0:02:58]} 3. Bb5+ {[%clk 0:03:00]}  Nc6 {[%clk 0:02:58]} 4. O-O {[%clk 0:02:59]}  Bd7 {[%clk 0:02:58]} 5. Re1 {[%clk 0:02:59]}  Nf6 {[%clk 0:02:57]} 6. c3 {[%clk 0:02:58]}  a6 {[%clk 0:02:58]} 7. Bf1 {[%clk 0:02:58]}  Bg4 {[%clk 0:02:58]} 8. d4 {[%clk 0:02:58]}  cxd4 {[%clk 0:02:55]} 9. cxd4 {[%clk 0:02:57]}  d5 {[%clk 0:02:52]} 10. Nc3 {[%clk 0:02:19]}  dxe4 {[%clk 0:02:49]} 11. Nxe4 {[%clk 0:02:19]}  Bxf3 {[%clk 0:02:48]} 12. Qxf3 {[%clk 0:02:18]}  Qxd4 {[%clk 0:02:47]} 13. Bg5 {[%clk 0:02:04]}  Nxe4 {[%clk 0:02:37]} 14. Rxe4 {[%clk 0:02:05]}  Qc5 {[%clk 0:02:37]} 15. Be3 {[%clk 0:01:53]}  Qa5 {[%clk 0:02:33]} 16. Bc4 {[%clk 0:01:42]}  e6 {[%clk 0:02:30]} 17. Qg3 {[%clk 0:01:36]}  O-O-O {[%clk 0:02:16]} 18. b4 {[%clk 0:01:30]}  Nxb4 {[%clk 0:02:00]} 19. Rc1 {[%clk 0:01:11]}  Nc6 {[%clk 0:01:59]} 20. Qf3 {[%clk 0:00:27]}  Ba3 {[%clk 0:01:57]} 21. Rb1 {[%clk 0:00:18]}  Bc5 {[%clk 0:01:33]} 22. Qxf7 {[%clk 0:00:17]}  Be7 {[%clk 0:01:07]} 23. Bxe6+ {[%clk 0:00:16]}  Kb8 {[%clk 0:01:06]} 24. Bf4+ {[%clk 0:00:15]}  Ka8 {[%clk 0:01:04]} 25. Qf5 {[%clk 0:00:10]}  Qxf5 {[%clk 0:00:54]} 26. Bxf5 {[%clk 0:00:11]}  Bf6 {[%clk 0:00:55]} 27. Bg4 {[%clk 0:00:07]}  Nd4 {[%clk 0:00:54]} 28. Bf3 {[%clk 0:00:05]}  Nxf3+ {[%clk 0:00:50]} 29. gxf3 {[%clk 0:00:06]}  Rd3 {[%clk 0:00:49]} 30. Kg2 {[%clk 0:00:05]}  Rf8 {[%clk 0:00:48]} 31. Be5 {[%clk 0:00:04]}  Bxe5 {[%clk 0:00:47]} 32. Rxe5 {[%clk 0:00:04]}  Rdxf3 {[%clk 0:00:48]} 33. Re8+ {[%clk 0:00:02]}  Rxe8 {[%clk 0:00:45]} 34. Kxf3 {[%clk 0:00:03]}  Re6 {[%clk 0:00:43]} 35. Rd1 {[%clk 0:00:03]}  Rf6+ {[%clk 0:00:43]} 36. Kg2 {[%clk 0:00:03]}  Rg6+ {[%clk 0:00:43]} 37. Kf3 {[%clk 0:00:03]}  Ka7 {[%clk 0:00:41]} 38. Rd7 {[%clk 0:00:03]}  h6 {[%clk 0:00:40]} 39. h4 {[%clk 0:00:03]}  Rf6+ {[%clk 0:00:37]} 40. Kg3 {[%clk 0:00:04]}  g5 {[%clk 0:00:37]} 41. hxg5 {[%clk 0:00:04]}  hxg5 {[%clk 0:00:38]} 42. f3 {[%clk 0:00:04]}  Rf5 {[%clk 0:00:38]} 43. Rg7 {[%clk 0:00:04]}  Ra5 {[%clk 0:00:38]} 44. Kg4 {[%clk 0:00:03]}  Rxa2 {[%clk 0:00:39]} 45. Rxg5 {[%clk 0:00:04]}  Ra1 {[%clk 0:00:38]} 46. f4 {[%clk 0:00:03]}  Kb6 {[%clk 0:00:35]} 47. f5 {[%clk 0:00:04]}  a5 {[%clk 0:00:35]} 48. f6 {[%clk 0:00:04]}  Rg1+ {[%clk 0:00:35]} 49. Kh5 {[%clk 0:00:04]}  Rf1 {[%clk 0:00:36]} 50. Kg6 {[%clk 0:00:04]}  a4 {[%clk 0:00:36]} 51. Rf5 {[%clk 0:00:05]}  Rxf5 {[%clk 0:00:29]} 52. Kxf5 {[%clk 0:00:05]}  a3 {[%clk 0:00:28]} 53. f7 {[%clk 0:00:05]}  a2 {[%clk 0:00:28]} 54. f8=Q {[%clk 0:00:06]}  a1=Q {[%clk 0:00:27]} 55. Qb4+ {[%clk 0:00:06]}  Ka6 {[%clk 0:00:25]} 56. Qc5 {[%clk 0:00:06]}  Qa5 {[%clk 0:00:24]} 57. Qe5 {[%clk 0:00:03]}  Qxe5+ {[%clk 0:00:24]} 58. Kxe5 {[%clk 0:00:04]}  Ka5 {[%clk 0:00:24]} 59. Kd4 {[%clk 0:00:04]}  Ka4 {[%clk 0:00:25]} 60. Kc3 {[%clk 0:00:05]}  b5 {[%clk 0:00:24]} 61. Kc2 {[%clk 0:00:04]}  Kb4 {[%clk 0:00:23]} 62. Kb2 {[%clk 0:00:04]}  Kc4 {[%clk 0:00:23]} 63. Kc2 {[%clk 0:00:04]}  Kd4 {[%clk 0:00:21]} 64. Kb3 {[%clk 0:00:03]}  Kc5 {[%clk 0:00:19]} 65. Kc3 {[%clk 0:00:03]}  b4+ {[%clk 0:00:19]} 66. Kb3 {[%clk 0:00:03]}  Kb5 {[%clk 0:00:20]} 67. Kb2 {[%clk 0:00:03]}  Kc4 {[%clk 0:00:20]} 68. Kc2 {[%clk 0:00:03]}  b3+ {[%clk 0:00:21]} 69. Kb2 {[%clk 0:00:03]}  Kb4 {[%clk 0:00:21]} 70. Kb1 {[%clk 0:00:03]}  Kc3 {[%clk 0:00:22]} 71. Kc1 {[%clk 0:00:03]}  Kd4 {[%clk 0:00:21]} 72. Kb2 {[%clk 0:00:03]}  Kc4 {[%clk 0:00:22]} 73. Kb1 {[%clk 0:00:02]}  Kc3 {[%clk 0:00:23]} 74. Kc1 {[%clk 0:00:03]}  Kb4 {[%clk 0:00:24]} 75. Kb2 {[%clk 0:00:02]}  Ka4 {[%clk 0:00:24]} 76. Kb1 {[%clk 0:00:02]}  Kb5 {[%clk 0:00:25]} 77. Kb2 {[%clk 0:00:03]}  Kc5 {[%clk 0:00:25]} 78. Kxb3 {[%clk 0:00:03]} 1/2-1/2


[Site "https://www.chess.com"]

[Event "Titled Tuesday Blitz May 16 Early 2023"]
[White "Jakic, Ivan"]
[Black "Pinto, Daniel"]
[WhiteFideId "14504901"]
[BlackFideId "3303144"]
[WhiteElo "2370"]
[BlackElo "2145"]
[Result "1-0"]
[Round "04"]
[TimeControl "180+2"]
[Date "2023.05.16"]
[WhiteClock "0:01:20"]
[BlackClock "0:00:05"]

1. e4 {[%clk 0:03:00]}  c6 {[%clk 0:02:54]} 2. d4 {[%clk 0:03:00]}  d5 {[%clk 0:02:54]} 3. f3 {[%clk 0:03:00]}  e6 {[%clk 0:02:49]} 4. Nc3 {[%clk 0:03:00]}  Nf6 {[%clk 0:02:44]} 5. e5 {[%clk 0:02:59]}  Nfd7 {[%clk 0:02:44]} 6. f4 {[%clk 0:03:00]}  c5 {[%clk 0:02:45]} 7. Nf3 {[%clk 0:03:00]}  Nc6 {[%clk 0:02:45]} 8. Bd3 {[%clk 0:03:01]}  Nxd4 {[%clk 0:02:14]} 9. Nxd4 {[%clk 0:03:00]}  cxd4 {[%clk 0:02:15]} 10. Ne2 {[%clk 0:03:00]}  Bc5 {[%clk 0:02:10]} 11. O-O {[%clk 0:03:01]}  O-O {[%clk 0:02:08]} 12. a3 {[%clk 0:03:01]}  a5 {[%clk 0:02:07]} 13. b3 {[%clk 0:03:01]}  f6 {[%clk 0:02:06]} 14. exf6 {[%clk 0:02:51]}  Nxf6 {[%clk 0:02:01]} 15. Bb2 {[%clk 0:02:50]}  Ng4 {[%clk 0:02:00]} 16. Nxd4 {[%clk 0:02:47]}  Qh4 {[%clk 0:01:48]} 17. h3 {[%clk 0:02:41]}  Ne3 {[%clk 0:01:45]} 18. Qe1 {[%clk 0:02:36]}  Qxe1 {[%clk 0:01:23]} 19. Rfxe1 {[%clk 0:02:36]}  Rxf4 {[%clk 0:01:24]} 20. c3 {[%clk 0:02:08]}  Nf5 {[%clk 0:01:02]} 21. Bxf5 {[%clk 0:02:06]}  Rxf5 {[%clk 0:01:01]} 22. Kh1 {[%clk 0:02:02]}  Bxd4 {[%clk 0:00:21]} 23. cxd4 {[%clk 0:02:03]}  Bd7 {[%clk 0:00:21]} 24. Rac1 {[%clk 0:02:03]}  Rc8 {[%clk 0:00:21]} 25. Rxc8+ {[%clk 0:02:01]}  Bxc8 {[%clk 0:00:22]} 26. Rc1 {[%clk 0:02:02]}  Bd7 {[%clk 0:00:22]} 27. Rc7 {[%clk 0:02:00]}  Bc6 {[%clk 0:00:21]} 28. Bc3 {[%clk 0:02:00]}  Rf1+ {[%clk 0:00:17]} 29. Kh2 {[%clk 0:02:00]}  Rb1 {[%clk 0:00:16]} 30. b4 {[%clk 0:01:34]}  axb4 {[%clk 0:00:15]} 31. Bxb4 {[%clk 0:01:34]}  h5 {[%clk 0:00:16]} 32. h4 {[%clk 0:01:34]}  Kh7 {[%clk 0:00:16]} 33. Bd6 {[%clk 0:01:33]}  Kg6 {[%clk 0:00:16]} 34. Be5 {[%clk 0:01:34]}  Ra1 {[%clk 0:00:12]} 35. Rxg7+ {[%clk 0:01:33]}  Kf5 {[%clk 0:00:13]} 36. Bd6 {[%clk 0:01:30]}  Ke4 {[%clk 0:00:12]} 37. Bc5 {[%clk 0:01:28]}  b6 {[%clk 0:00:09]} 38. Bxb6 {[%clk 0:01:28]}  Rxa3 {[%clk 0:00:08]} 39. Rg5 {[%clk 0:01:26]}  Be8 {[%clk 0:00:09]} 40. Bc5 {[%clk 0:01:26]}  Rb3 {[%clk 0:00:08]} 41. Re5+ {[%clk 0:01:26]}  Kf4 {[%clk 0:00:08]} 42. Rxe6 {[%clk 0:01:27]}  Bd7 {[%clk 0:00:07]} 43. Re5 {[%clk 0:01:27]}  Bg4 {[%clk 0:00:07]} 44. Rxd5 {[%clk 0:01:25]}  Rb2 {[%clk 0:00:07]} 45. Rd8 {[%clk 0:01:24]}  Ke4 {[%clk 0:00:07]} 46. Re8+ {[%clk 0:01:23]}  Kd5 {[%clk 0:00:06]} 47. Rf8 {[%clk 0:01:23]}  Ke4 {[%clk 0:00:06]} 48. Kg3 {[%clk 0:01:22]}  Rb3+ {[%clk 0:00:06]} 49. Kh2 {[%clk 0:01:23]}  Rb2 {[%clk 0:00:06]} 50. Rf6 {[%clk 0:01:21]}  Bf3 {[%clk 0:00:06]} 51. Rxf3 {[%clk 0:01:21]}  Rc2 {[%clk 0:00:05]} 52. Rg3 {[%clk 0:01:20]}  Kf4 {[%clk 0:00:05]} 53. Rg5 {[%clk 0:01:20]} 1-0


[Site "https://www.chess.com"]

[Event "Titled Tuesday Blitz May 16 Early 2023"]
[White "Rosh Jain"]
[Black "Khamdamova, Afruza"]
[WhiteFideId "25789465"]
[BlackFideId "14210444"]
[WhiteElo "2233"]
[BlackElo "2312"]
[Result "0-1"]
[Round "04"]
[TimeControl "180+2"]
[Date "2023.05.16"]
[WhiteClock "0:01:18"]
[BlackClock "0:01:35"]

1. d4 {[%clk 0:03:00]}  Nf6 {[%clk 0:02:59]} 2. Bf4 {[%clk 0:03:00]}  d5 {[%clk 0:02:59]} 3. e3 {[%clk 0:03:00]}  c5 {[%clk 0:02:59]} 4. Nf3 {[%clk 0:02:56]}  Nc6 {[%clk 0:02:59]} 5. Nbd2 {[%clk 0:02:55]}  Qb6 {[%clk 0:02:59]} 6. dxc5 {[%clk 0:02:55]}  Qxb2 {[%clk 0:02:59]} 7. Rb1 {[%clk 0:02:54]}  Qc3 {[%clk 0:02:58]} 8. Bb5 {[%clk 0:02:50]}  e6 {[%clk 0:02:58]} 9. O-O {[%clk 0:02:49]}  Be7 {[%clk 0:02:50]} 10. Ne5 {[%clk 0:02:24]}  Bd7 {[%clk 0:02:49]} 11. Nxd7 {[%clk 0:02:23]}  Nxd7 {[%clk 0:02:49]} 12. Bd6 {[%clk 0:02:19]}  Bxd6 {[%clk 0:02:44]} 13. cxd6 {[%clk 0:02:20]}  O-O {[%clk 0:02:44]} 14. Bd3 {[%clk 0:02:17]}  Nc5 {[%clk 0:02:25]} 15. Be2 {[%clk 0:02:02]}  Rad8 {[%clk 0:02:22]} 16. Rb5 {[%clk 0:02:01]}  b6 {[%clk 0:02:19]} 17. Nb1 {[%clk 0:01:44]}  Qf6 {[%clk 0:02:19]} 18. Na3 {[%clk 0:01:39]}  Rxd6 {[%clk 0:02:16]} 19. c4 {[%clk 0:01:38]}  Rfd8 {[%clk 0:02:15]} 20. Qc2 {[%clk 0:01:38]}  Ne5 {[%clk 0:02:09]} 21. Rd1 {[%clk 0:01:30]}  dxc4 {[%clk 0:02:07]} 22. Rxd6 {[%clk 0:01:30]}  Rxd6 {[%clk 0:02:08]} 23. Nxc4 {[%clk 0:01:31]}  Nxc4 {[%clk 0:02:08]} 24. Bxc4 {[%clk 0:01:32]}  g6 {[%clk 0:01:59]} 25. g3 {[%clk 0:01:29]}  Qd8 {[%clk 0:01:57]} 26. Be2 {[%clk 0:01:27]}  Rd2 {[%clk 0:01:57]} 27. Qc4 {[%clk 0:01:27]}  Qd5 {[%clk 0:01:54]} 28. Qg4 {[%clk 0:01:16]}  h5 {[%clk 0:01:51]} 29. Qc4 {[%clk 0:01:16]}  Rxa2 {[%clk 0:01:44]} 30. Qxd5 {[%clk 0:01:14]}  exd5 {[%clk 0:01:44]} 31. Bf3 {[%clk 0:01:14]}  Rd2 {[%clk 0:01:44]} 32. Kf1 {[%clk 0:01:15]}  d4 {[%clk 0:01:36]} 33. Ke1 {[%clk 0:01:13]}  dxe3 {[%clk 0:01:36]} 34. fxe3 {[%clk 0:01:14]}  Rxh2 {[%clk 0:01:36]} 35. Rb4 {[%clk 0:01:12]}  Nd3+ {[%clk 0:01:35]} 36. Kf1 {[%clk 0:01:11]}  Nxb4 {[%clk 0:01:35]} 37. Bxh5 {[%clk 0:01:12]}  Rxh5 {[%clk 0:01:34]} 38. g4 {[%clk 0:01:13]}  Rh2 {[%clk 0:01:34]} 39. e4 {[%clk 0:01:14]}  Nd3 {[%clk 0:01:34]} 40. e5 {[%clk 0:01:15]}  Rf2+ {[%clk 0:01:34]} 41. Kg1 {[%clk 0:01:15]}  a5 {[%clk 0:01:34]} 42. g5 {[%clk 0:01:16]}  a4 {[%clk 0:01:34]} 43. e6 {[%clk 0:01:17]}  fxe6 {[%clk 0:01:34]} 44. Kh1 {[%clk 0:01:16]}  a3 {[%clk 0:01:35]} 45. Kg1 {[%clk 0:01:17]}  a2 {[%clk 0:01:35]} 46. Kh1 {[%clk 0:01:18]}  a1=Q# {[%clk 0:01:35]} 0-1


[Site "https://www.chess.com"]

[Event "Titled Tuesday Blitz May 16 Early 2023"]
[White "Klepikov, Nikita"]
[Black "Martins, Vinicius Tine"]
[WhiteFideId "24145220"]
[BlackFideId "2112884"]
[WhiteElo "2025"]
[BlackElo "2373"]
[Result "0-1"]
[Round "04"]
[TimeControl "180+2"]
[Date "2023.05.16"]
[WhiteClock "0:00:00"]
[BlackClock "0:01:21"]

1. e4 {[%clk 0:02:59]}  c5 {[%clk 0:02:59]} 2. Nf3 {[%clk 0:02:59]}  d6 {[%clk 0:02:53]} 3. d4 {[%clk 0:02:59]}  cxd4 {[%clk 0:02:54]} 4. Nxd4 {[%clk 0:03:00]}  Nf6 {[%clk 0:02:55]} 5. Nc3 {[%clk 0:03:00]}  g6 {[%clk 0:02:55]} 6. Bc4 {[%clk 0:02:52]}  Bg7 {[%clk 0:02:55]} 7. Be3 {[%clk 0:02:52]}  O-O {[%clk 0:02:55]} 8. f3 {[%clk 0:02:47]}  Nc6 {[%clk 0:02:55]} 9. Bb3 {[%clk 0:02:44]}  Bd7 {[%clk 0:02:55]} 10. Qd2 {[%clk 0:02:45]}  Rc8 {[%clk 0:02:55]} 11. O-O-O {[%clk 0:02:45]}  Nxd4 {[%clk 0:02:55]} 12. Bxd4 {[%clk 0:02:42]}  b5 {[%clk 0:02:56]} 13. a3 {[%clk 0:02:40]}  a5 {[%clk 0:02:55]} 14. Kb1 {[%clk 0:02:40]}  b4 {[%clk 0:02:52]} 15. axb4 {[%clk 0:02:40]}  axb4 {[%clk 0:02:53]} 16. Na2 {[%clk 0:02:40]}  Qc7 {[%clk 0:02:35]} 17. h4 {[%clk 0:02:14]}  Ra8 {[%clk 0:02:32]} 18. h5 {[%clk 0:02:05]}  Ba4 {[%clk 0:02:14]} 19. Qe3 {[%clk 0:01:08]}  Bxb3 {[%clk 0:02:06]} 20. Qxb3 {[%clk 0:01:07]}  Rfb8 {[%clk 0:02:02]} 21. hxg6 {[%clk 0:01:03]}  hxg6 {[%clk 0:01:59]} 22. Rh3 {[%clk 0:00:52]}  Ra5 {[%clk 0:01:32]} 23. g4 {[%clk 0:00:51]}  Rba8 {[%clk 0:01:30]} 24. Rdh1 {[%clk 0:00:36]}  Rxa2 {[%clk 0:01:26]} 25. Qxa2 {[%clk 0:00:16]}  Rxa2 {[%clk 0:01:27]} 26. Kxa2 {[%clk 0:00:17]}  Qxc2 {[%clk 0:01:23]} 27. g5 {[%clk 0:00:00]}  Qc4+ {[%clk 0:01:21]} 0-1


[Site "https://www.chess.com"]

[Event "Titled Tuesday Blitz May 16 Early 2023"]
[White "Onufrienko, Vladislav"]
[Black "Rosenberg, Evan S"]
[WhiteFideId "13804332"]
[BlackFideId "2019299"]
[WhiteElo "1814"]
[BlackElo "2284"]
[Result "0-1"]
[Round "04"]
[TimeControl "180+2"]
[Date "2023.05.16"]
[WhiteClock "0:00:00"]
[BlackClock "0:00:15"]

1. e4 {[%clk 0:03:00]}  e5 {[%clk 0:02:59]} 2. Nf3 {[%clk 0:03:00]}  Nc6 {[%clk 0:03:00]} 3. Nc3 {[%clk 0:03:00]}  Nf6 {[%clk 0:03:00]} 4. h3 {[%clk 0:03:00]}  d5 {[%clk 0:03:00]} 5. exd5 {[%clk 0:02:59]}  Nxd5 {[%clk 0:03:01]} 6. Bb5 {[%clk 0:02:59]}  Nxc3 {[%clk 0:03:00]} 7. bxc3 {[%clk 0:03:00]}  Bd6 {[%clk 0:03:00]} 8. O-O {[%clk 0:03:00]}  O-O {[%clk 0:03:00]} 9. Re1 {[%clk 0:03:01]}  Qf6 {[%clk 0:02:59]} 10. d4 {[%clk 0:03:00]}  exd4 {[%clk 0:02:45]} 11. cxd4 {[%clk 0:02:57]}  Bf5 {[%clk 0:02:40]} 12. c4 {[%clk 0:02:51]}  Rad8 {[%clk 0:02:37]} 13. Bg5 {[%clk 0:02:42]}  Qg6 {[%clk 0:02:33]} 14. Bxd8 {[%clk 0:02:32]}  Rxd8 {[%clk 0:02:32]} 15. Nh4 {[%clk 0:02:30]}  Qg5 {[%clk 0:02:32]} 16. Nxf5 {[%clk 0:02:27]}  Qxf5 {[%clk 0:02:33]} 17. Bxc6 {[%clk 0:02:18]}  bxc6 {[%clk 0:02:33]} 18. Qf3 {[%clk 0:02:18]}  Qxf3 {[%clk 0:02:21]} 19. gxf3 {[%clk 0:02:18]}  g6 {[%clk 0:02:17]} 20. c5 {[%clk 0:02:15]}  Bf8 {[%clk 0:02:16]} 21. Rad1 {[%clk 0:02:15]}  h5 {[%clk 0:02:04]} 22. Re4 {[%clk 0:02:08]}  Rb8 {[%clk 0:02:01]} 23. Kg2 {[%clk 0:02:03]}  Rb2 {[%clk 0:01:38]} 24. d5 {[%clk 0:02:01]}  Bxc5 {[%clk 0:01:33]} 25. dxc6 {[%clk 0:01:44]}  Rxf2+ {[%clk 0:01:27]} 26. Kg3 {[%clk 0:01:43]}  Rxa2 {[%clk 0:01:28]} 27. Rd7 {[%clk 0:01:37]}  g5 {[%clk 0:01:13]} 28. h4 {[%clk 0:01:35]}  Bf2+ {[%clk 0:01:08]} 29. Kh3 {[%clk 0:01:28]}  gxh4 {[%clk 0:01:03]} 30. Rxc7 {[%clk 0:00:40]}  Bg3 {[%clk 0:01:03]} 31. Rc8+ {[%clk 0:00:39]}  Kg7 {[%clk 0:01:01]} 32. Rxh4 {[%clk 0:00:40]}  Bxh4 {[%clk 0:00:59]} 33. Kxh4 {[%clk 0:00:40]}  Rc2 {[%clk 0:00:59]} 34. Kxh5 {[%clk 0:00:32]}  a5 {[%clk 0:00:59]} 35. f4 {[%clk 0:00:27]}  Kf6 {[%clk 0:00:51]} 36. c7 {[%clk 0:00:17]}  a4 {[%clk 0:00:49]} 37. Ra8 {[%clk 0:00:11]}  Rxc7 {[%clk 0:00:47]} 38. Rxa4 {[%clk 0:00:10]}  Rc6 {[%clk 0:00:46]} 39. Kg4 {[%clk 0:00:09]}  Rc1 {[%clk 0:00:43]} 40. Ra6+ {[%clk 0:00:08]}  Kg7 {[%clk 0:00:41]} 41. Kg5 {[%clk 0:00:08]}  Rg1+ {[%clk 0:00:41]} 42. Kf5 {[%clk 0:00:06]}  Rg2 {[%clk 0:00:41]} 43. Ra7 {[%clk 0:00:05]}  Rg1 {[%clk 0:00:41]} 44. Ke5 {[%clk 0:00:04]}  Re1+ {[%clk 0:00:40]} 45. Kf5 {[%clk 0:00:04]}  Re2 {[%clk 0:00:40]} 46. Ra3 {[%clk 0:00:04]}  Rg2 {[%clk 0:00:37]} 47. Re3 {[%clk 0:00:03]}  Rg1 {[%clk 0:00:37]} 48. Ke5 {[%clk 0:00:03]}  Rg6 {[%clk 0:00:31]} 49. f5 {[%clk 0:00:02]}  Ra6 {[%clk 0:00:32]} 50. Rg3+ {[%clk 0:00:02]}  Kh6 {[%clk 0:00:23]} 51. Kf4 {[%clk 0:00:03]}  Ra4+ {[%clk 0:00:19]} 52. Ke5 {[%clk 0:00:03]}  Ra6 {[%clk 0:00:19]} 53. f6 {[%clk 0:00:02]}  Ra5+ {[%clk 0:00:18]} 54. Kd6 {[%clk 0:00:02]}  Ra7 {[%clk 0:00:16]} 55. Rg4 {[%clk 0:00:01]}  Rb7 {[%clk 0:00:16]} 56. Rg7 {[%clk 0:00:00]}  Ra7 {[%clk 0:00:15]} 0-1


[Site "https://www.chess.com"]

[Event "Titled Tuesday Blitz May 16 Early 2023"]
[White "Sala, Giulia"]
[Black "Lorenzo De La Riva, Lazaro"]
[WhiteFideId "2840451"]
[BlackFideId "2268809"]
[WhiteElo "1769"]
[BlackElo "2294"]
[Result "0-1"]
[Round "04"]
[TimeControl "180+2"]
[Date "2023.05.16"]
[WhiteClock "0:00:00"]
[BlackClock "0:00:16"]

1. d4 {[%clk 0:02:28]}  d6 {[%clk 0:02:58]} 2. e4 {[%clk 0:02:25]}  Nf6 {[%clk 0:02:52]} 3. Bd3 {[%clk 0:02:24]}  e5 {[%clk 0:02:49]} 4. d5 {[%clk 0:02:21]}  c6 {[%clk 0:02:48]} 5. c4 {[%clk 0:02:21]}  g6 {[%clk 0:02:45]} 6. Nf3 {[%clk 0:02:19]}  Bg7 {[%clk 0:02:45]} 7. O-O {[%clk 0:02:18]}  O-O {[%clk 0:02:43]} 8. Be3 {[%clk 0:01:50]}  Ng4 {[%clk 0:02:38]} 9. Qc1 {[%clk 0:01:35]}  Nxe3 {[%clk 0:02:37]} 10. Qxe3 {[%clk 0:01:36]}  c5 {[%clk 0:02:36]} 11. Nc3 {[%clk 0:01:36]}  h6 {[%clk 0:02:29]} 12. h3 {[%clk 0:01:36]}  f5 {[%clk 0:02:23]} 13. exf5 {[%clk 0:01:34]}  gxf5 {[%clk 0:02:24]} 14. Nd2 {[%clk 0:01:27]}  Nd7 {[%clk 0:02:20]} 15. f3 {[%clk 0:01:20]}  Nf6 {[%clk 0:02:17]} 16. Rae1 {[%clk 0:01:19]}  a6 {[%clk 0:02:14]} 17. g4 {[%clk 0:01:15]}  f4 {[%clk 0:02:08]} 18. Qe2 {[%clk 0:00:57]}  b5 {[%clk 0:02:01]} 19. cxb5 {[%clk 0:00:57]}  axb5 {[%clk 0:01:58]} 20. Bxb5 {[%clk 0:00:57]}  Ne8 {[%clk 0:01:52]} 21. Bd3 {[%clk 0:00:54]}  Bf6 {[%clk 0:01:46]} 22. Qe4 {[%clk 0:00:51]}  Qe7 {[%clk 0:01:43]} 23. Qg6+ {[%clk 0:00:50]}  Qg7 {[%clk 0:01:40]} 24. Nc4 {[%clk 0:00:48]}  Qxg6 {[%clk 0:01:36]} 25. Bxg6 {[%clk 0:00:49]}  Be7 {[%clk 0:01:37]} 26. a4 {[%clk 0:00:47]}  Nc7 {[%clk 0:01:34]} 27. a5 {[%clk 0:00:42]}  Ba6 {[%clk 0:01:26]} 28. Bd3 {[%clk 0:00:42]}  Rfb8 {[%clk 0:01:16]} 29. Rf2 {[%clk 0:00:40]}  Rb4 {[%clk 0:01:14]} 30. Nb6 {[%clk 0:00:34]}  Bxd3 {[%clk 0:01:13]} 31. Nxa8 {[%clk 0:00:34]}  Nxa8 {[%clk 0:01:14]} 32. Rd2 {[%clk 0:00:31]}  Ba6 {[%clk 0:01:14]} 33. Ne4 {[%clk 0:00:31]}  Kf7 {[%clk 0:01:04]} 34. Kg2 {[%clk 0:00:23]}  Rb5 {[%clk 0:00:49]} 35. Ra1 {[%clk 0:00:21]}  Nc7 {[%clk 0:00:44]} 36. Ra3 {[%clk 0:00:19]}  Ne8 {[%clk 0:00:40]} 37. Kf2 {[%clk 0:00:13]}  Rb4 {[%clk 0:00:32]} 38. Nc3 {[%clk 0:00:12]}  Bh4+ {[%clk 0:00:29]} 39. Kg2 {[%clk 0:00:12]}  Nf6 {[%clk 0:00:28]} 40. Na4 {[%clk 0:00:12]}  e4 {[%clk 0:00:26]} 41. fxe4 {[%clk 0:00:12]}  Nxe4 {[%clk 0:00:27]} 42. Rd1 {[%clk 0:00:10]}  Bf2 {[%clk 0:00:21]} 43. Rf1 {[%clk 0:00:10]}  Be3 {[%clk 0:00:21]} 44. Rf3 {[%clk 0:00:09]}  Kg6 {[%clk 0:00:19]} 45. Nb6 {[%clk 0:00:09]}  Rxb2+ {[%clk 0:00:18]} 46. Kh1 {[%clk 0:00:06]}  Be2 {[%clk 0:00:18]} 47. Rfxe3 {[%clk 0:00:05]}  fxe3 {[%clk 0:00:19]} 48. Rxe3 {[%clk 0:00:06]}  Ng5 {[%clk 0:00:15]} 49. Nc8 {[%clk 0:00:05]}  Ba6 {[%clk 0:00:14]} 50. Nxd6 {[%clk 0:00:04]}  Ra2 {[%clk 0:00:15]} 51. Ne4 {[%clk 0:00:05]}  Nxe4 {[%clk 0:00:15]} 52. Rxe4 {[%clk 0:00:06]}  Rxa5 {[%clk 0:00:14]} 53. Re6+ {[%clk 0:00:07]}  Kg5 {[%clk 0:00:14]} 54. d6 {[%clk 0:00:07]}  c4 {[%clk 0:00:14]} 55. d7 {[%clk 0:00:07]}  Rd5 {[%clk 0:00:15]} 56. Rxa6 {[%clk 0:00:07]}  Rxd7 {[%clk 0:00:15]} 57. Rc6 {[%clk 0:00:07]}  Rd4 {[%clk 0:00:15]} 58. Kg2 {[%clk 0:00:08]}  Kf4 {[%clk 0:00:15]} 59. Rxh6 {[%clk 0:00:06]}  Ke4 {[%clk 0:00:15]} 60. Rc6 {[%clk 0:00:07]}  Kd3 {[%clk 0:00:16]} 61. h4 {[%clk 0:00:07]}  c3 {[%clk 0:00:16]} 62. h5 {[%clk 0:00:07]}  Rc4 {[%clk 0:00:16]} 63. Rd6+ {[%clk 0:00:07]}  Ke4 {[%clk 0:00:17]} 64. Kh3 {[%clk 0:00:07]}  c2 {[%clk 0:00:16]} 65. Re6+ {[%clk 0:00:06]}  Kd5 {[%clk 0:00:16]} 66. Re1 {[%clk 0:00:05]}  c1=Q {[%clk 0:00:16]} 67. Rxc1 {[%clk 0:00:06]}  Rxc1 {[%clk 0:00:16]} 68. g5 {[%clk 0:00:06]}  Ke6 {[%clk 0:00:17]} 69. h6 {[%clk 0:00:00]}  Kf5 {[%clk 0:00:16]} 0-1


[Site "https://www.chess.com"]

[Event "Titled Tuesday Blitz May 16 Early 2023"]
[White "Ljukin, Sergei"]
[Black "Afanasieva, Alexandra"]
[WhiteFideId "14102200"]
[BlackFideId "34126926"]
[WhiteElo "2312"]
[BlackElo "1745"]
[Result "1-0"]
[Round "04"]
[TimeControl "180+2"]
[Date "2023.05.16"]
[WhiteClock "0:01:37"]
[BlackClock "0:02:06"]

1. e4 {[%clk 0:02:53]}  c5 {[%clk 0:02:59]} 2. Nf3 {[%clk 0:02:52]}  Nc6 {[%clk 0:02:57]} 3. d4 {[%clk 0:02:52]}  cxd4 {[%clk 0:02:58]} 4. Nxd4 {[%clk 0:02:53]}  e5 {[%clk 0:02:59]} 5. Nb5 {[%clk 0:02:52]}  a6 {[%clk 0:02:57]} 6. Nd6+ {[%clk 0:02:50]}  Bxd6 {[%clk 0:02:58]} 7. Qxd6 {[%clk 0:02:50]}  Qe7 {[%clk 0:02:59]} 8. Qxe7+ {[%clk 0:02:49]}  Ngxe7 {[%clk 0:02:59]} 9. Nc3 {[%clk 0:02:49]}  O-O {[%clk 0:02:53]} 10. Be3 {[%clk 0:02:39]}  f5 {[%clk 0:02:45]} 11. f3 {[%clk 0:02:26]}  fxe4 {[%clk 0:02:35]} 12. fxe4 {[%clk 0:02:25]}  Nd4 {[%clk 0:02:35]} 13. O-O-O {[%clk 0:02:22]}  Nec6 {[%clk 0:02:32]} 14. Bc4+ {[%clk 0:02:19]}  Kh8 {[%clk 0:02:32]} 15. Rhf1 {[%clk 0:02:19]}  Rxf1 {[%clk 0:02:24]} 16. Rxf1 {[%clk 0:02:19]}  h6 {[%clk 0:02:24]} 17. Rf8+ {[%clk 0:02:01]}  Kh7 {[%clk 0:02:24]} 18. Nd5 {[%clk 0:01:59]}  b5 {[%clk 0:02:18]} 19. Nb6 {[%clk 0:01:38]}  Rb8 {[%clk 0:02:16]} 20. Bg8+ {[%clk 0:01:38]}  Kg6 {[%clk 0:02:16]} 21. Nxc8 {[%clk 0:01:38]}  Ne7 {[%clk 0:02:06]} 22. Nxe7+ {[%clk 0:01:37]} 1-0


[Site "https://www.chess.com"]